[Event "Summer Prague Open A 2020"]
[Site "Prague"]
[Date "2020.08.12"]
[Round "6.12"]
[White "Simek, Petr"]
[Black "Mueer, Sebastian"]
[Result "1-0"]
[ECO "E62"]
[WhiteElo "2344"]
[BlackElo "2210"]
[Annotator "ChessBase"]
[PlyCount "97"]
[EventDate "2020.08.08"]
[EventCountry "CZE"]
[SourceTitle "playchess.com"]
[Source "ChessBase"]
[SourceQuality "1"]
[TimeControl "40/5400+30:1800+30"]

1. c4 {[%emt 0:02:26]} Nf6 {[%emt 0:00:35]} 2. Nc3 {[%emt 0:00:38]} g6 {[%emt 0:00:10]} 3. Nf3 {[%emt 0:00:49]} Bg7 {[%emt 0:00:10]} 4. d4 {[%emt 0:00:37]} O-O {[%emt 0:00:24]} 5. g3 {[%emt 0:00:13]} d6 {[%emt 0:00:12]} 6. Bg2 {[%emt 0:00:06]} c6 {[%emt 0:00:08]} 7. O-O {[%emt 0:00:07]} Qa5 {[%emt 0:00:20]} 8. e4 {[%emt 0:00:16]} e5 {[%emt 0:00:07]} 9. h3 {[%emt 0:01:15]} Nbd7 {[%emt 0:00:10]} 10. Re1 {[%emt 0:00:19]} exd4 {[%emt 0:00:07]} 11. Nxd4 {[%emt 0:00:03]} Ne5 {[%emt 0:00:13]} 12. Bf1 {[%emt 0:00:19]} Be6 {[%emt 0:00:07]} 13. Nxe6 {[%emt 0:24:48]} fxe6 {[%emt 0:00:03]} 14. Kg2 {[%emt 0:00:07]} Rad8 {[%emt 0:01:22]} 15. f4 {[%emt 0:26:20]} Nf7 {[%emt 0:00:03]} 16. Bd2 {[%emt 0:00:06]} Qc7 {[%emt 0:06:07]} 17. Bd3 {[%emt 0:01:32]} e5 {[%emt 0:01:10]} 18. Qc2 {[%emt 0:13:35]} exf4 {[%emt 0:02:54]} 19. gxf4 {[%emt 0:00:06]} Nh5 {[%emt 0:03:12]} 20. Rf1 {[%emt 0:00:06]} g5 {[%emt 0:09:10]} 21. fxg5 {[%emt 0:01:17]} d5 {[%emt 0:03:48]} 22. Ne2 {[%emt 0:02:44]} d4 {[%emt 0:05:59]} 23. c5 {[%emt 0:05:58]} Kh8 {[%emt 0:00:32]} 24. Rf5 {[%emt 0:00:25]} Ne5 {[%emt 0:01:59]} 25. Raf1 {[%emt 0:00:05]} Ng6 {[%emt 0:00:19]} 26. Be1 {[%emt 0:07:14]} Be5 {[%emt 0:09:10]} 27. Qc4 {[%emt 0:01:45]} Qe7 {[%emt 0:04:11]} 28. Kh1 {[%emt 0:03:08]} Ng7 {[%emt 0:00:52]} 29. h4 {[%emt 0:04:46]} Nxf5 {[%emt 0:00:01]} 30. exf5 {[%emt 0:00:07]} Nf4 {[%emt 0:00:14]} 31. Nxf4 {[%emt 0:01:19]} Bxf4 {[%emt 0:00:07]} 32. Bf2 {[%emt 0:00:05]} Qe5 {[%emt 0:03:50]} 33. Kg2 {[%emt 0:00:52]} Rfe8 {[%emt 0:10:46]} 34. Re1 {[%emt 0:00:26]} Be3 {[%emt 0:00:43]} 35. Bg3 {[%emt 0:00:07]} Qd5+ {[%emt 0:02:01]} 36. Qxd5 {[%emt 0:00:05]} Rxd5 {[%emt 0:00:05]} 37. Bd6 {[%emt 0:00:29]} b5 {[%emt 0:12:30]} 38. Kf3 {[%emt 0:00:37]} Rd8 {[%emt 0:05:47]} 39. b3 {[%emt 0:01:59]} h6 {[%emt 0:01:21]} 40. Kg4 {[%emt 0:01:08]} Kg8 {[%emt 0:08:36]} 41. Be4 {[%emt 0:08:39]} R8xd6 {[%emt 0:03:04]} 42. cxd6 {[%emt 0:00:07]} Rxd6 {[%emt 0:00:07]} 43. f6 {[%emt 0:00:27]} Kf8 {[%emt 0:06:06]} 44. Rf1 {[%emt 0:08:30]} hxg5 {[%emt 0:02:00]} 45. hxg5 {[%emt 0:00:06]} d3 {[%emt 0:00:30]} 46. g6 {[%emt 0:01:15]} Rd4 {[%emt 0:07:10]} 47. Kf5 {[%emt 0:02:06]} d2 {[%emt 0:03:39]} 48. Rh1 {[%emt 0:00:43]} Ke8 {[%emt 0:01:39]} 49. g7 {[%emt 0:00:29]} 1-0

[Event "Summer Prague Open A 2020"]
[Site "Prague"]
[Date "2020.08.12"]
[Round "6.13"]
[White "Malassagne, Raphael"]
[Black "Mukashev, Assan"]
[Result "1-0"]
[ECO "A45"]
[WhiteElo "2305"]
[BlackElo "2207"]
[Annotator "ChessBase"]
[PlyCount "63"]
[EventDate "2020.08.08"]
[EventCountry "CZE"]
[SourceTitle "playchess.com"]
[Source "ChessBase"]
[SourceQuality "1"]
[TimeControl "40/5400+30:1800+30"]

1. d4 Nf6 2. Bf4 d5 3. e3 e6 4. Nd2 c5 5. c3 Nc6 6. Ngf3 Bd6 7. Bg3 O-O 8. Bd3 b6 9. e4 dxe4 10. Nxe4 Nxe4 11. Bxe4 Bb7 12. Qa4 Na5 13. dxc5 Bxc5 14. Rd1 Qe8 15. Bxh7+ Kxh7 16. Qh4+ Kg8 17. Ng5 Be4 18. Qxe4 f5 19. Qd3 Qh5 20. Nf3 g5 21. Bc7 Rf7 22. Bd8 Nb7 23. Bxg5 e5 24. Qd5 Re8 25. h4 Bd6 26. Qc6 Rc7 27. Qd5+ Kh7 28. O-O e4 29. Qxf5+ Kg8 30. g4 Qh8 31. Qg6+ Kf8 32. Rxd6 1-0

[Event "Summer Prague Open A 2020"]
[Site "Prague"]
[Date "2020.08.12"]
[Round "6.14"]
[White "Kratochvil, Vit"]
[Black "Froeyman, Helmut"]
[Result "1/2-1/2"]
[ECO "A10"]
[WhiteElo "2205"]
[BlackElo "2281"]
[Annotator "ChessBase"]
[PlyCount "46"]
[EventDate "2020.08.08"]
[EventCountry "CZE"]
[SourceTitle "playchess.com"]
[Source "ChessBase"]
[SourceQuality "1"]
[TimeControl "40/5400+30:1800+30"]

1. c4 {[%emt 0:00:00]} f5 {[%emt 0:00:00]} 2. Nf3 {[%emt 0:00:34]} Nf6 {[%emt 0:00:00]} 3. g3 {[%emt 0:00:16]} g6 {[%emt 0:00:31]} 4. b3 {[%emt 0:01:43]} Bg7 {[%emt 0:01:15]} 5. Bb2 {[%emt 0:00:29]} O-O {[%emt 0:05:14]} 6. Bg2 {[%emt 0:01:01]} d6 {[%emt 0:00:26]} 7. d4 {[%emt 0:01:53]} c6 {[%emt 0:14:33]} 8. O-O {[%emt 0:02:21]} e5 {[%emt 0:14:14]} 9. dxe5 {[%emt 0:15:45]} Ng4 {[%emt 0:00:06]} 10. Qc2 {[%emt 0:04:57]} Nxe5 {[%emt 0:02:45]} 11. Rd1 {[%emt 0:03:37]} Qe7 {[%emt 0:02:10]} 12. Nc3 {[%emt 0:09:02]} Na6 {[%emt 0:03:13]} 13. Ba3 {[%emt 0:07:36]} Rd8 {[%emt 0:04:45]} 14. e3 {[%emt 0:08:49]} Be6 {[%emt 0:03:08]} 15. Rd2 {[%emt 0:05:31]} Rd7 {[%emt 0:01:48]} 16. Rad1 {[%emt 0:02:13]} Rad8 {[%emt 0:00:20]} 17. Nd4 {[%emt 0:05:56]} Nc5 {[%emt 0:05:49]} 18. h3 {[%emt 0:09:27]} a5 {[%emt 0:22:21]} 19. Nxe6 {[%emt 0:01:19]} Nxe6 {[%emt 0:03:31]} 20. f4 {[%emt 0:07:55]} Nf7 {[%emt 0:00:20]} 21. e4 {[%emt 0:00:30]} fxe4 {[%emt 0:03:10]} 22. Nxe4 {[%emt 0:01:22]} c5 {[%emt 0:01:37]} 23. Bb2 {[%emt 0:06:14]} Nd4 {[%emt 0:00:39]} 1/2-1/2

[Event "Summer Prague Open A 2020"]
[Site "Prague"]
[Date "2020.08.12"]
[Round "6.15"]
[White "Dietz, Florian"]
[Black "Vorisek, Jakub"]
[Result "1-0"]
[ECO "B35"]
[WhiteElo "2262"]
[BlackElo "2205"]
[Annotator "ChessBase"]
[PlyCount "109"]
[EventDate "2020.08.08"]
[EventCountry "CZE"]
[SourceTitle "playchess.com"]
[Source "ChessBase"]
[SourceQuality "1"]
[TimeControl "40/5400+30:1800+30"]

1. e4 {[%emt 0:00:00]} c5 {[%emt 0:00:40]} 2. Nf3 {[%emt 0:00:00]} Nc6 {[%emt 0:00:13]} 3. d4 {[%emt 0:00:11]} cxd4 {[%emt 0:00:14]} 4. Nxd4 {[%emt 0:00:08]} g6 {[%emt 0:00:33]} 5. Nc3 {[%emt 0:00:52]} Bg7 {[%emt 0:02:29]} 6. Be3 {[%emt 0:00:07]} Nf6 {[%emt 0:00:14]} 7. Bc4 {[%emt 0:00:31]} Qa5 {[%emt 0:00:18]} 8. O-O {[%emt 0:03:22]} O-O {[%emt 0:00:24]} 9. Bb3 {[%emt 0:02:52]} d6 {[%emt 0:00:34]} 10. h3 {[%emt 0:00:40]} Bd7 {[%emt 0:01:37]} 11. Re1 {[%emt 0:01:49]} Rac8 {[%emt 0:02:44]} 12. Nd5 {[%emt 0:14:44]} Rfe8 {[%emt 0:05:16]} 13. Nxc6 {[%emt 0:05:53]} bxc6 {[%emt 0:14:06]} 14. Nxf6+ {[%emt 0:02:19]} Bxf6 {[%emt 0:00:15]} 15. c3 {[%emt 0:01:29]} c5 {[%emt 0:05:06]} 16. Qe2 {[%emt 0:08:24]} Bb5 {[%emt 0:05:55]} 17. Qg4 {[%emt 0:00:31]} c4 {[%emt 0:04:06]} 18. a4 {[%emt 0:04:54]} cxb3 {[%emt 0:01:41]} 19. axb5 {[%emt 0:00:09]} Qxb5 {[%emt 0:00:08]} 20. Rxa7 {[%emt 0:00:20]} Ra8 {[%emt 0:00:26]} 21. Qd7 {[%emt 0:04:25]} Qxd7 {[%emt 0:13:53]} 22. Rxd7 {[%emt 0:00:05]} Ra2 {[%emt 0:00:13]} 23. Rb1 {[%emt 0:00:28]} Rb8 {[%emt 0:01:27]} 24. Rc7 {[%emt 0:02:36]} Ra4 {[%emt 0:11:24]} 25. f3 {[%emt 0:00:49]} Kf8 {[%emt 0:00:37]} 26. Kf1 {[%emt 0:02:33]} Ke8 {[%emt 0:00:16]} 27. Ke2 {[%emt 0:00:12]} Kd8 {[%emt 0:00:47]} 28. Ra7 {[%emt 0:00:05]} Rxa7 {[%emt 0:04:33]} 29. Bxa7 {[%emt 0:00:12]} Rb7 {[%emt 0:00:04]} 30. Be3 {[%emt 0:00:55]} Kd7 {[%emt 0:01:27]} 31. Kd3 {[%emt 0:00:45]} Kc6 {[%emt 0:00:10]} 32. Ra1 {[%emt 0:04:38]} Kb5 {[%emt 0:09:21]} 33. Ra3 {[%emt 0:00:46]} Kc6 {[%emt 0:00:07]} 34. Kc4 {[%emt 0:00:36]} e6 {[%emt 0:00:15]} 35. Ra6+ {[%emt 0:00:36]} Kc7 {[%emt 0:00:06]} 36. Ra4 {[%emt 0:08:31]} Kc6 {[%emt 0:00:41]} 37. Rb4 {[%emt 0:00:35]} d5+ {[%emt 0:05:46]} 38. Kxb3 {[%emt 0:00:41]} Rxb4+ {[%emt 0:00:56]} 39. Kxb4 {[%emt 0:00:10]} Be7+ {[%emt 0:00:07]} 40. Ka5 {[%emt 0:01:17]} dxe4 {[%emt 0:00:08]} 41. fxe4 {[%emt 0:30:08]} f5 {[%emt 0:30:11]} 42. e5 {[%emt 0:03:22]} Kb7 {[%emt 0:01:02]} 43. Kb5 {[%emt 0:03:02]} g5 {[%emt 0:00:07]} 44. c4 {[%emt 0:01:12]} h5 {[%emt 0:00:21]} 45. c5 {[%emt 0:00:42]} f4 {[%emt 0:00:06]} 46. c6+ {[%emt 0:00:39]} Kc8 {[%emt 0:00:05]} 47. Bf2 {[%emt 0:00:50]} Bf8 {[%emt 0:00:12]} 48. b4 {[%emt 0:01:49]} Bg7 {[%emt 0:00:58]} 49. Bd4 {[%emt 0:01:34]} g4 {[%emt 0:00:04]} 50. Kc4 {[%emt 0:00:32]} f3 {[%emt 0:00:20]} 51. hxg4 {[%emt 0:01:40]} fxg2 {[%emt 0:01:08]} 52. gxh5 {[%emt 0:00:17]} Bxe5 {[%emt 0:00:05]} 53. Bg1 {[%emt 0:00:15]} Kc7 {[%emt 0:00:57]} 54. b5 {[%emt 0:00:10]} Bg7 {[%emt 0:00:14]} 55. Kd3 1-0

[Event "Summer Prague Open A 2020"]
[Site "Prague"]
[Date "2020.08.12"]
[Round "6.16"]
[White "Marakovits, Nico"]
[Black "Sprenar, Petr"]
[Result "1/2-1/2"]
[ECO "D35"]
[WhiteElo "2105"]
[BlackElo "2257"]
[Annotator "ChessBase"]
[PlyCount "62"]
[EventDate "2020.08.08"]
[EventCountry "CZE"]
[SourceTitle "playchess.com"]
[Source "ChessBase"]
[SourceQuality "1"]
[TimeControl "40/5400+30:1800+30"]

1. d4 {[%emt 0:00:00]} e6 {[%emt 0:00:00]} 2. c4 {[%emt 0:00:00]} Nf6 {[%emt 0:00:00]} 3. Nc3 {[%emt 0:00:00]} d5 {[%emt 0:00:00]} 4. cxd5 {[%emt 0:00:19]} exd5 {[%emt 0:00:00]} 5. Bg5 {[%emt 0:00:23]} c6 {[%emt 0:00:00]} 6. e3 {[%emt 0:00:09]} Nbd7 {[%emt 0:00:40]} 7. Qc2 {[%emt 0:00:55]} Be7 {[%emt 0:00:31]} 8. Bd3 {[%emt 0:00:58]} h6 {[%emt 0:00:05]} 9. Bh4 {[%emt 0:00:04]} Nh5 {[%emt 0:00:12]} 10. Bxe7 {[%emt 0:00:13]} Qxe7 {[%emt 0:00:07]} 11. O-O-O {[%emt 0:00:58]} Nb6 {[%emt 0:00:39]} 12. Nf3 {[%emt 0:03:19]} Bg4 {[%emt 0:00:25]} 13. Kb1 {[%emt 0:02:08]} Bxf3 {[%emt 0:04:27]} 14. gxf3 {[%emt 0:00:23]} O-O-O {[%emt 0:00:05]} 15. Na4 {[%emt 0:05:52]} Nxa4 {[%emt 0:04:01]} 16. Qxa4 {[%emt 0:00:14]} Kb8 {[%emt 0:02:05]} 17. Rdg1 {[%emt 0:06:14]} Qh4 {[%emt 0:07:44]} 18. Qc2 {[%emt 0:05:34]} g6 {[%emt 0:01:31]} 19. Rg4 {[%emt 0:05:23]} Qf6 {[%emt 0:02:59]} 20. f4 {[%emt 0:02:26]} Ng7 {[%emt 0:03:43]} 21. f5 {[%emt 0:06:37]} h5 {[%emt 0:04:45]} 22. Rg3 {[%emt 0:01:35]} h4 {[%emt 0:04:15]} 23. Rg4 {[%emt 0:01:36]} gxf5 {[%emt 0:00:33]} 24. Rf4 {[%emt 0:01:10]} Rh5 {[%emt 0:03:52]} 25. Rg1 {[%emt 0:07:00]} Rg5 {[%emt 0:00:32]} 26. Rxg5 {[%emt 0:01:11]} Qxg5 {[%emt 0:00:05]} 27. h3 {[%emt 0:00:57]} Qg1+ {[%emt 0:07:13]} 28. Qc1 {[%emt 0:00:16]} Qg5 {[%emt 0:00:38]} 29. Qc2 {[%emt 0:00:24]} Qg1+ {[%emt 0:04:32]} 30. Qc1 {[%emt 0:00:15]} Qg5 {[%emt 0:00:02]} 31. Qc2 {[%emt 0:00:04]} Qg1+ {[%emt 0:00:06]} 1/2-1/2

[Event "Summer Prague Open A 2020"]
[Site "Prague"]
[Date "2020.08.12"]
[Round "6.17"]
[White "Skalsky, Alexandr"]
[Black "Ludvik, Tomas"]
[Result "0-1"]
[ECO "C17"]
[WhiteElo "2156"]
[BlackElo "2202"]
[Annotator "ChessBase"]
[PlyCount "131"]
[EventDate "2020.08.08"]
[EventCountry "CZE"]
[SourceTitle "playchess.com"]
[Source "ChessBase"]
[SourceQuality "1"]
[TimeControl "40/5400+30:1800+30"]

1. e4 {[%emt 0:00:00]} e6 {[%emt 0:00:00]} 2. d4 {[%emt 0:00:00]} d5 {[%emt 0:00:00]} 3. Nc3 {[%emt 0:00:00]} Bb4 {[%emt 0:00:00]} 4. e5 {[%emt 0:00:00]} c5 {[%emt 0:00:00]} 5. Bd2 {[%emt 0:00:00]} Ne7 {[%emt 0:00:05]} 6. a3 {[%emt 0:00:00]} Bxc3 {[%emt 0:01:33]} 7. Bxc3 {[%emt 0:00:00]} b6 {[%emt 0:02:48]} 8. Bb5+ {[%emt 0:00:05]} Kf8 {[%emt 0:07:58]} 9. Bd3 {[%emt 0:09:31]} Ba6 {[%emt 0:01:38]} 10. f4 {[%emt 0:03:36]} Bxd3 {[%emt 0:01:18]} 11. Qxd3 {[%emt 0:00:43]} Nbc6 {[%emt 0:01:31]} 12. Nf3 {[%emt 0:01:18]} Nf5 {[%emt 0:04:59]} 13. O-O {[%emt 0:07:05]} h5 {[%emt 0:06:16]} 14. b4 {[%emt 0:26:21]} cxd4 {[%emt 0:02:14]} 15. Bxd4 {[%emt 0:00:29]} Rc8 {[%emt 0:02:14]} 16. c3 {[%emt 0:05:13]} g6 {[%emt 0:02:17]} 17. Rac1 {[%emt 0:03:36]} Kg7 {[%emt 0:01:10]} 18. Rc2 {[%emt 0:04:29]} Qd7 {[%emt 0:05:01]} 19. Rfc1 {[%emt 0:06:45]} Nce7 {[%emt 0:06:46]} 20. Qd1 {[%emt 0:04:52]} Rc4 {[%emt 0:03:42]} 21. g3 {[%emt 0:02:25]} Rhc8 {[%emt 0:01:25]} 22. Rd2 {[%emt 0:09:35]} Nxd4 {[%emt 0:02:07]} 23. Nxd4 {[%emt 0:00:49]} Rxc3 {[%emt 0:00:12]} 24. Ra1 {[%emt 0:04:26]} a6 {[%emt 0:06:07]} 25. g4 {[%emt 0:02:49]} hxg4 {[%emt 0:00:22]} 26. Qxg4 {[%emt 0:00:48]} Nc6 {[%emt 0:04:33]} 27. Ne2 {[%emt 0:02:45]} Rc4 {[%emt 0:00:23]} 28. Ng3 {[%emt 0:01:22]} Nxe5 {[%emt 0:04:30]} 29. Qe2 {[%emt 0:01:00]} f6 {[%emt 0:14:49]} 30. fxe5 {[%emt 0:00:05]} f5 {[%emt 0:00:05]} 31. Rad1 {[%emt 0:02:21]} Qc7 {[%emt 0:02:00]} 32. Rd3 {[%emt 0:01:47]} f4 {[%emt 0:01:03]} 33. Nf1 {[%emt 0:00:23]} Re4 {[%emt 0:00:35]} 34. Qxe4 {[%emt 0:00:46]} dxe4 {[%emt 0:00:17]} 35. Rd7+ {[%emt 0:00:01]} Kh6 {[%emt 0:00:15]} 36. Rxc7 {[%emt 0:00:03]} Rxc7 {[%emt 0:00:03]} 37. Re1 {[%emt 0:02:28]} e3 {[%emt 0:00:49]} 38. Nxe3 {[%emt 0:00:29]} fxe3 39. Rxe3 Kg5 {[%emt 0:01:28]} 40. Kg2 {[%emt 0:01:03]} Kf4 {[%emt 0:01:24]} 41. Rg3 {[%emt 0:13:12]} g5 {[%emt 0:01:21]} 42. Rd3 {[%emt 0:07:02]} Rc2+ {[%emt 0:01:13]} 43. Kg1 {[%emt 0:00:19]} Kxe5 {[%emt 0:00:12]} 44. Re3+ {[%emt 0:01:05]} Kf5 {[%emt 0:00:39]} 45. Rd3 {[%emt 0:02:43]} Ra2 {[%emt 0:01:58]} 46. Rd6 {[%emt 0:01:13]} Rxa3 {[%emt 0:00:20]} 47. Rxb6 {[%emt 0:00:01]} e5 {[%emt 0:00:54]} 48. b5 {[%emt 0:00:26]} axb5 {[%emt 0:00:06]} 49. Rxb5 {[%emt 0:00:03]} Kf4 {[%emt 0:00:28]} 50. Rb8 {[%emt 0:02:13]} Ra1+ {[%emt 0:02:14]} 51. Kf2 {[%emt 0:00:49]} Ra2+ {[%emt 0:00:06]} 52. Kg1 {[%emt 0:00:01]} e4 {[%emt 0:00:14]} 53. Rf8+ {[%emt 0:01:04]} Ke3 {[%emt 0:00:55]} 54. Rg8 {[%emt 0:02:05]} Kf3 {[%emt 0:11:03]} 55. Rf8+ {[%emt 0:00:12]} Kg4 {[%emt 0:01:15]} 56. Re8 {[%emt 0:00:21]} Re2 {[%emt 0:00:57]} 57. Rh8 {[%emt 0:03:28]} Rd2 {[%emt 0:02:18]} 58. Re8 {[%emt 0:01:17]} Kf3 {[%emt 0:00:21]} 59. Rf8+ {[%emt 0:00:01]} Ke2 {[%emt 0:01:43]} 60. Rf2+ {[%emt 0:02:18]} Kd3 {[%emt 0:00:13]} 61. Rf5 {[%emt 0:00:32]} e3 {[%emt 0:00:31]} 62. Rd5+ {[%emt 0:00:32]} Ke4 {[%emt 0:00:37]} 63. Rxg5 {[%emt 0:00:01]} Rd1+ {[%emt 0:00:07]} 64. Kg2 {[%emt 0:00:01]} e2 {[%emt 0:00:07]} 65. Rg8 {[%emt 0:00:39]} e1=Q {[%emt 0:00:14]} 66. Re8+ {[%emt 0:00:01]} 0-1

[Event "Summer Prague Open A 2020"]
[Site "Prague"]
[Date "2020.08.12"]
[Round "6.18"]
[White "Syrkiewicz, Michal"]
[Black "Defromont, Benjamin"]
[Result "0-1"]
[ECO "B76"]
[WhiteElo "1911"]
[BlackElo "2236"]
[Annotator "ChessBase"]
[PlyCount "68"]
[EventDate "2020.08.08"]
[EventCountry "CZE"]
[SourceTitle "playchess.com"]
[Source "ChessBase"]
[SourceQuality "1"]
[TimeControl "40/5400+30:1800+30"]

1. e4 c5 2. Nf3 d6 3. d4 cxd4 4. Nxd4 Nf6 5. Nc3 g6 6. Be3 Bg7 7. f3 O-O 8. Qd2 Nc6 9. g4 Be6 10. Nxe6 fxe6 11. O-O-O Ne5 12. Be2 Rc8 13. h4 Nfd7 14. f4 Nc4 15. Bxc4 Rxc4 16. e5 Qa5 17. exd6 Bxc3 18. bxc3 Qxa2 19. Qd3 exd6 20. Kd2 Nc5 21. Bxc5 Rxc5 22. Ra1 Qd5 23. Qxd5 Rxd5+ 24. Ke3 Rc8 25. Rxa7 Rxc3+ 26. Ke4 Rb5 27. Rd1 Rb6 28. f5 Kf7 29. fxg6+ Kxg6 30. Ra2 Rb4+ 31. Rd4 d5+ 32. Ke5 Re3+ 33. Kf4 Rxd4+ 34. Kxe3 Rxg4 0-1

[Event "Summer Prague Open A 2020"]
[Site "Prague"]
[Date "2020.08.12"]
[Round "6.19"]
[White "Soural, Jan"]
[Black "Kanakova, Natalie"]
[Result "1/2-1/2"]
[ECO "A04"]
[WhiteElo "2234"]
[BlackElo "2162"]
[Annotator "ChessBase"]
[PlyCount "154"]
[EventDate "2020.08.08"]
[EventCountry "CZE"]
[SourceTitle "playchess.com"]
[Source "ChessBase"]
[SourceQuality "1"]
[TimeControl "40/5400+30:1800+30"]

1. Nf3 c5 2. c4 g6 3. Nc3 Bg7 4. e3 Nf6 5. d4 cxd4 6. exd4 d5 7. Be2 O-O 8. O-O dxc4 9. Bxc4 b6 10. Re1 Bb7 11. d5 Qc7 12. Qe2 Nbd7 13. Nb5 Qc5 14. Be3 Qc8 15. Rac1 a6 16. d6 axb5 17. Bxf7+ Rxf7 18. Rxc8+ Rxc8 19. Ng5 exd6 20. Nxf7 Kxf7 21. Qxb5 Bc6 22. Qb4 Bf8 23. Qh4 Bd5 24. Bd4 Bxa2 25. Bxf6 Nxf6 26. Qa4 Be6 27. Qa7+ Nd7 28. Qb7 Rc5 29. h3 Bg7 30. b4 Rd5 31. Rc1 Be5 32. g3 Ke7 33. Re1 Rd2 34. Qe4 Rd4 35. Qe2 Rxb4 36. Qd2 Rb2 37. Qh6 Nf8 38. Qg5+ Bf6 39. Qe3 Rb5 40. Qd3 Rc5 41. Qa6 Nd7 42. Qa8 Re5 43. Rc1 Ra5 44. Qe4 Rc5 45. Rd1 d5 46. Qe3 d4 47. Rxd4 Bxd4 48. Qxd4 Bd5 49. g4 Kd6 50. Qg7 Kc7 51. f4 b5 52. Qxh7 Be4 53. Qe7 Rc4 54. Qe6 Nc5 55. Qf6 Rc2 56. Qe7+ Kb6 57. Qd8+ Ka6 58. f5 gxf5 59. gxf5 Bxf5 60. Qa8+ Kb6 61. Qd8+ Kc6 62. Qe8+ Nd7 63. Qa8+ Kc5 64. Qa3+ Kd5 65. Qb3+ Ke5 66. Qxb5+ Kf4 67. Qa4+ Kg3 68. Qb3+ Kh4 69. Qf3 Kg5 70. h4+ Kf6 71. Qa3 Nc5 72. Qe3 Ne6 73. h5 Ng5 74. Qd4+ Ke6 75. Qe3+ Kf6 76. Qd4+ Ke6 77. Qe3+ Ne4 1/2-1/2

[Event "Summer Prague Open A 2020"]
[Site "Prague"]
[Date "2020.08.13"]
[Round "7.2"]
[White "Buchenau, Frank"]
[Black "Petr, Martin"]
[Result "0-1"]
[ECO "C15"]
[WhiteElo "2278"]
[BlackElo "2464"]
[Annotator "ChessBase"]
[PlyCount "70"]
[EventDate "2020.08.08"]
[EventCountry "CZE"]
[SourceTitle "playchess.com"]
[Source "ChessBase"]
[SourceQuality "1"]
[TimeControl "40/5400+30:1800+30"]

1. e4 {[%emt 0:00:00]} e6 {[%emt 0:00:00]} 2. d4 {[%emt 0:00:00]} d5 {[%emt 0:00:00]} 3. Nc3 {[%emt 0:00:00]} Bb4 {[%emt 0:01:50]} 4. exd5 {[%emt 0:01:01]} exd5 {[%emt 0:00:21]} 5. Bd3 {[%emt 0:00:08]} c6 {[%emt 0:03:21]} 6. Nge2 {[%emt 0:01:27]} Ne7 {[%emt 0:00:07]} 7. O-O {[%emt 0:07:15]} Bg4 {[%emt 0:02:50]} 8. Bf4 {[%emt 0:04:14]} O-O {[%emt 0:01:44]} 9. Qd2 {[%emt 0:01:14]} Bf5 {[%emt 0:02:26]} 10. Rae1 {[%emt 0:10:16]} Bxd3 {[%emt 0:03:58]} 11. Qxd3 {[%emt 0:01:22]} Ng6 {[%emt 0:00:17]} 12. Bg3 {[%emt 0:01:16]} Nd7 {[%emt 0:08:11]} 13. a3 {[%emt 0:01:54]} Be7 {[%emt 0:00:28]} 14. Nf4 {[%emt 0:12:55]} Re8 {[%emt 0:06:19]} 15. Nxg6 {[%emt 0:04:48]} hxg6 {[%emt 0:00:09]} 16. Nb1 {[%emt 0:17:08]} Qb6 {[%emt 0:03:19]} 17. b4 {[%emt 0:03:48]} a6 {[%emt 0:14:48]} 18. Re2 {[%emt 0:08:27]} Bf6 {[%emt 0:03:01]} 19. c3 {[%emt 0:01:21]} Qb5 {[%emt 0:00:20]} 20. Qxb5 {[%emt 0:01:57]} axb5 {[%emt 0:01:40]} 21. Rfe1 {[%emt 0:00:16]} Rxe2 {[%emt 0:06:10]} 22. Rxe2 {[%emt 0:00:02]} Nb6 {[%emt 0:00:06]} 23. Bf4 {[%emt 0:08:34]} Nc4 {[%emt 0:03:49]} 24. Bc1 {[%emt 0:00:56]} b6 {[%emt 0:04:44]} 25. g4 {[%emt 0:04:09]} Kf8 {[%emt 0:00:31]} 26. Kg2 {[%emt 0:01:58]} Be7 {[%emt 0:05:23]} 27. h4 {[%emt 0:02:49]} Bxh4 {[%emt 0:06:59]} 28. g5 {[%emt 0:02:06]} Re8 {[%emt 0:00:14]} 29. Rxe8+ {[%emt 0:00:42]} Kxe8 {[%emt 0:00:01]} 30. f4 {[%emt 0:01:52]} Ke7 {[%emt 0:04:12]} 31. Kf3 {[%emt 0:00:50]} Ke6 {[%emt 0:00:25]} 32. Kg4 {[%emt 0:00:44]} Be1 {[%emt 0:00:08]} 33. Kf3 {[%emt 0:00:12]} Kf5 {[%emt 0:00:16]} 34. Be3 {[%emt 0:00:18]} Nxe3 {[%emt 0:01:26]} 35. Kxe3 {[%emt 0:00:07]} Bg3 {[%emt 0:00:02]} 0-1

[Event "Summer Prague Open A 2020"]
[Site "Prague"]
[Date "2020.08.13"]
[Round "7.6"]
[White "Slampa, Jan"]
[Black "Cernousek, Lukas"]
[Result "0-1"]
[ECO "B85"]
[WhiteElo "2264"]
[BlackElo "2458"]
[Annotator "ChessBase"]
[PlyCount "60"]
[EventDate "2020.08.08"]
[EventCountry "CZE"]
[SourceTitle "playchess.com"]
[Source "ChessBase"]
[SourceQuality "1"]
[TimeControl "40/5400+30:1800+30"]

1. e4 {[%emt 0:00:00]} c5 {[%emt 0:00:00]} 2. Nf3 {[%emt 0:00:00]} d6 {[%emt 0:00:00]} 3. d4 {[%emt 0:00:00]} Nf6 {[%emt 0:00:00]} 4. Nc3 {[%emt 0:00:00]} cxd4 {[%emt 0:00:01]} 5. Nxd4 {[%emt 0:00:00]} a6 {[%emt 0:00:07]} 6. Be2 {[%emt 0:00:12]} Nbd7 {[%emt 0:00:07]} 7. O-O {[%emt 0:01:27]} e6 {[%emt 0:00:06]} 8. f4 {[%emt 0:06:26]} b5 {[%emt 0:00:11]} 9. a3 {[%emt 0:02:36]} Bb7 {[%emt 0:00:08]} 10. Bf3 {[%emt 0:00:08]} Qc7 {[%emt 0:11:12]} 11. Kh1 {[%emt 0:03:36]} Be7 {[%emt 0:01:22]} 12. Qe1 {[%emt 0:04:35]} Rb8 {[%emt 0:10:01]} 13. g4 {[%emt 0:07:24]} h6 {[%emt 0:00:36]} 14. Bd2 {[%emt 0:10:46]} g5 {[%emt 0:03:08]} 15. f5 {[%emt 0:07:08]} e5 {[%emt 0:01:14]} 16. Nb3 {[%emt 0:03:12]} Nb6 {[%emt 0:15:06]} 17. Rd1 {[%emt 0:13:15]} Nc4 {[%emt 0:22:40]} 18. Bc1 {[%emt 0:00:14]} h5 {[%emt 0:00:15]} 19. gxh5 {[%emt 0:07:02]} g4 {[%emt 0:00:01]} 20. Bg2 {[%emt 0:00:43]} Rxh5 {[%emt 0:00:03]} 21. Kg1 {[%emt 0:06:24]} Qb6+ {[%emt 0:15:23]} 22. Qf2 {[%emt 0:10:44]} Bd8 {[%emt 0:00:03]} 23. Rfe1 {[%emt 0:05:21]} Qxf2+ {[%emt 0:02:38]} 24. Kxf2 {[%emt 0:00:02]} Bb6+ {[%emt 0:00:09]} 25. Kg3 {[%emt 0:03:43]} Kd7 {[%emt 0:00:02]} 26. Rh1 {[%emt 0:03:51]} Rg8 {[%emt 0:00:13]} 27. Nd5 {[%emt 0:01:59]} Bxd5 {[%emt 0:00:54]} 28. exd5 {[%emt 0:01:09]} Rxf5 {[%emt 0:07:04]} 29. h3 {[%emt 0:01:55]} Bf2+ {[%emt 0:00:12]} 30. Kh2 {[%emt 0:00:04]} g3# 0-1